fUSD/lending_fUSD_20260602
["ID","MTS","AMOUNT","RATE_DAILY","PERIOD"]
[423748729,1780381832000,-152.0,0.00011723,7]
[423748742,1780381832000,-500.0,0.00012337,2]
[423748733,1780381832000,-200.0,0.00011768,2]
[423748734,1780381832000,-1550.64,0.00011913,2]
[423748737,1780381832000,-11683.93,0.00011981,2]
[423748740,1780381832000,-152.95,0.00012317,2]
[423748736,1780381832000,-241.97,0.00011978,2]
[423748725,1780381832000,-152.0,0.00011709,7]
[423748732,1780381832000,-420.0,0.00011761,2]
[423748728,1780381832000,-152.0,0.00011716,7]
[423748726,1780381832000,-152.0,0.00011709,7]
[423748727,1780381832000,-152.0,0.00011716,7]
[423748724,1780381832000,-152.0,0.00011709,7]
[423748723,1780381832000,-152.95,0.00011701,2]
[423748721,1780381832000,-12719.55361434,0.000107,2]
[423748722,1780381832000,-150.0,0.00010805,2]
[423748743,1780381832000,-151.65919362,0.00012337,2]
[423748730,1780381832000,-250.0,0.00011747,2]
[423748741,1780381832000,-2031.31,0.00012329,2]
[423748755,1780381832000,-152.95,0.00012933,2]
[423748751,1780381832000,-2000.0,0.00012826,2]
[423748766,1780381832000,-20531.59669946,0.00013234,2]
[423748764,1780381832000,-184.98,0.00013159,2]
[423748744,1780381832000,-1449.36,0.00012346,2]
[423748761,1780381832000,-393.17,0.0001315,2]
[423748760,1780381832000,-575.1,0.0001315,2]
[423748758,1780381832000,-481.99,0.00013147,2]
[423748762,1780381832000,-481.99,0.0001315,2]
[423748759,1780381832000,-184.99,0.00013147,2]
[423748756,1780381832000,-152.0,0.00013141,2]
[423748757,1780381832000,-152.0,0.00013141,2]
[423748765,1780381832000,-500.0,0.00013202,2]
[423748752,1780381832000,-2000.0,0.00012826,2]
[423748754,1780381832000,-587.0,0.00012928,2]
[423748747,1780381832000,-185.64,0.00012646,2]
[423748745,1780381832000,-2000.0,0.00012454,2]
[423748750,1780381832000,-2000.0,0.00012826,2]
[423748748,1780381832000,-150.0,0.00012796,2]
[423748746,1780381832000,-1000.0,0.00012454,2]
[423748763,1780381832000,-184.98,0.00013159,2]
[423748753,1780381832000,-500.0,0.00012928,2]
[423748749,1780381832000,-1533.6005849,0.00012797,2]
[423748781,1780381838000,-3371.7461791,0.00013334,2]
[423748779,1780381838000,-1357.0,0.00013303,2]
[423748778,1780381838000,-929.0,0.00013303,2]
[423748782,1780381838000,-8445.9602283,0.0001334,2]
[423748777,1780381838000,-2433.90364767,0.0001324,2]
[423748776,1780381838000,-151.0,0.00013234,2]
[423748775,1780381838000,-151.0,0.00013234,2]
[423748774,1780381838000,-151.0,0.00013234,2]
[423748783,1780381838000,-1361.5951214,0.0001334,2]
[423748773,1780381838000,-17484.46051139,0.00013234,2]
[423748772,1780381838000,-1415.48866512,0.00013234,2]
[423748770,1780381838000,-2748.16025717,0.00013234,2]
[423748771,1780381838000,-2203.07766686,0.00013234,2]
[423748769,1780381838000,-350.0,0.00010699,2]
[423748780,1780381838000,-151.0,0.00013334,2]
[423748785,1780381838000,-206.59701634,0.00013363,2]
[423748792,1780381838000,-151.0,0.00013424,2]
[423748794,1780381838000,-151.0,0.00013434,2]
[423748784,1780381838000,-500.0,0.0001334,2]
[423748800,1780381838000,-1848.36580941,0.00013437,2]
[423748798,1780381838000,-311.66399913,0.00013437,2]
[423748801,1780381838000,-493.4793815,0.00013437,2]
[423748796,1780381838000,-1129.641172,0.00013437,2]
[423748797,1780381838000,-870.358828,0.00013437,2]
[423748790,1780381838000,-151.0,0.00013424,2]
[423748799,1780381838000,-1741.45500423,0.00013437,2]
[423748789,1780381838000,-233.56020436,0.00013417,7]
[423748787,1780381838000,-2344.0,0.000134,2]
[423748793,1780381838000,-2433.90364764,0.00013424,2]
[423748795,1780381838000,-2185.7866,0.00013437,2]
[423748786,1780381838000,-2319.0,0.000134,2]
[423748788,1780381838000,-1591.0,0.000134,2]
[423748791,1780381838000,-151.0,0.00013424,2]
[423748962,1780381840000,-1904.22909,0.0001346,2]
[423748959,1780381840000,-1904.22908,0.0001346,2]
[423748958,1780381840000,-1904.22908,0.0001346,2]
[423748963,1780381840000,-1904.22908,0.0001346,2]
[423748961,1780381840000,-1904.22908,0.0001346,2]
[423748957,1780381840000,-3895.44177653,0.00013437,2]
[423748964,1780381840000,-150.0,0.00013488,2]
[423748960,1780381840000,-1904.22908,0.0001346,2]
[423748967,1780381840000,-7694.382875,0.00013533,2]
[423748966,1780381840000,-11000.92248871,0.00013498,2]
[423748970,1780381840000,-151.0,0.00013534,2]
[423748969,1780381840000,-151.0,0.00013534,2]
[423748972,1780381840000,-49205.98238849,0.00013537,2]
[423748965,1780381840000,-150.0,0.00013488,2]
[423748968,1780381840000,-202.414943,0.00013533,2]
[423748971,1780381840000,-9631.82599545,0.00013537,2]
[423749128,1780381843000,-309.3198592,0.00013698,2]
[423749129,1780381843000,-500.0,0.00013698,2]
[423749130,1780381843000,-500.0,0.00013698,2]
[423749133,1780381843000,-560.8,0.00013698,2]
[423749136,1780381843000,-500.0,0.00013698,2]
[423749131,1780381843000,-500.0,0.00013698,2]
[423749137,1780381843000,-559.74,0.00013698,2]
[423749134,1780381843000,-500.0,0.00013698,2]
[423749135,1780381843000,-500.0,0.00013698,2]
[423749132,1780381843000,-602.09,0.00013698,2]
[423749139,1780381843000,-500.0,0.00013698,2]
[423749143,1780381843000,-500.0,0.00013698,2]
[423749141,1780381843000,-573.16,0.00013698,2]
[423749145,1780381843000,-200.0,0.00013699,2]
[423749144,1780381843000,-166.66,0.00013699,2]
[423749152,1780381843000,-151.0,0.00013699,2]
[423749150,1780381843000,-151.0,0.00013699,2]
[423749147,1780381843000,-151.0,0.00013699,2]
[423749146,1780381843000,-151.0,0.00013699,2]
[423749142,1780381843000,-500.0,0.00013698,2]
[423749151,1780381843000,-254.365704,0.00013699,2]
[423749121,1780381843000,-500.0,0.00013614,2]
[423749138,1780381843000,-500.0,0.00013698,2]
[423749123,1780381843000,-8290.40597079,0.00013646,2]
[423749112,1780381843000,-1014.33890873,0.00013598,2]
[423749120,1780381843000,-2433.90364764,0.00013609,2]
[423749101,1780381843000,-1236.58350568,0.00013537,2]
[423749102,1780381843000,-278.10141366,0.00013537,2]
[423749103,1780381843000,-318.46,0.00013537,2]
[423749105,1780381843000,-151.0,0.00013537,2]
[423749114,1780381843000,-151.0,0.00013598,2]
[423749115,1780381843000,-41353.1934356,0.000136,2]
[423749113,1780381843000,-151.0,0.00013598,2]
[423749106,1780381843000,-151.0,0.00013537,2]
[423749104,1780381843000,-121176.76747249,0.00013537,2]
[423749108,1780381843000,-636.611544,0.0001357,2]
[423749149,1780381843000,-151.0,0.00013699,2]
[423749107,1780381843000,-266.611626,0.00013537,2]
[423749111,1780381843000,-1000.0,0.00013598,2]
[423749109,1780381843000,-260.925511,0.0001357,2]
[423749110,1780381843000,-349.917903,0.00013578,2]
[423749116,1780381843000,-151.0,0.000136,2]
[423749127,1780381843000,-1124.0,0.00013676,2]
[423749125,1780381843000,-385.0,0.00013657,2]
[423749126,1780381843000,-581.97030897,0.0001366,2]
[423749117,1780381843000,-151.0,0.000136,2]
[423749119,1780381843000,-8431.03,0.00013608,2]
[423749118,1780381843000,-422.34,0.00013608,2]
[423749124,1780381843000,-11000.92248865,0.00013654,2]
[423749122,1780381843000,-275.0,0.00013644,2]
[423749148,1780381843000,-151.0,0.00013699,2]
[423749140,1780381843000,-500.0,0.00013698,2]
[423749155,1780381843000,-151.0,0.00013699,2]
[423749190,1780381843000,-500.0,0.00013699,2]
[423749184,1780381843000,-500.0,0.00013699,2]
[423749191,1780381843000,-500.0,0.00013699,2]
[423749185,1780381843000,-500.0,0.00013699,2]
[423749179,1780381843000,-500.0,0.00013699,2]
[423749182,1780381843000,-500.0,0.00013699,2]
[423749183,1780381843000,-500.0,0.00013699,2]
[423749188,1780381843000,-500.0,0.00013699,2]
[423749186,1780381843000,-500.0,0.00013699,2]
[423749187,1780381843000,-500.0,0.00013699,2]
[423749192,1780381843000,-500.0,0.00013699,2]
[423749193,1780381843000,-500.0,0.00013699,2]
[423749194,1780381843000,-500.0,0.00013699,2]
[423749203,1780381843000,-500.0,0.00013699,2]
[423749196,1780381843000,-500.0,0.00013699,2]
[423749205,1780381843000,-500.0,0.00013699,2]
[423749198,1780381843000,-500.0,0.00013699,2]
[423749208,1780381843000,-500.0,0.00013699,2]
[423749210,1780381843000,-150.0,0.000137,2]
[423749201,1780381843000,-500.0,0.00013699,2]
[423749199,1780381843000,-500.0,0.00013699,2]
[423749197,1780381843000,-500.0,0.00013699,2]
[423749154,1780381843000,-151.0,0.00013699,2]
[423749181,1780381843000,-500.0,0.00013699,2]
[423749189,1780381843000,-500.0,0.00013699,2]
[423749195,1780381843000,-500.0,0.00013699,2]
[423749175,1780381843000,-500.0,0.00013699,2]
[423749156,1780381843000,-151.0,0.00013699,2]
[423749180,1780381843000,-500.0,0.00013699,2]
[423749157,1780381843000,-198.767907,0.00013699,2]
[423749163,1780381843000,-500.0,0.00013699,2]
[423749153,1780381843000,-151.0,0.00013699,2]
[423749164,1780381843000,-500.0,0.00013699,2]
[423749165,1780381843000,-500.0,0.00013699,2]
[423749161,1780381843000,-500.0,0.00013699,2]
[423749159,1780381843000,-500.0,0.00013699,2]
[423749162,1780381843000,-500.0,0.00013699,2]
[423749160,1780381843000,-500.0,0.00013699,2]
[423749167,1780381843000,-500.0,0.00013699,2]
[423749158,1780381843000,-350.0,0.00013699,3]
[423749166,1780381843000,-500.0,0.00013699,2]
[423749178,1780381843000,-324.09773516,0.00013699,2]
[423749168,1780381843000,-500.0,0.00013699,2]
[423749169,1780381843000,-500.0,0.00013699,2]
[423749177,1780381843000,-500.0,0.00013699,2]
[423749172,1780381843000,-500.0,0.00013699,2]
[423749174,1780381843000,-500.0,0.00013699,2]
[423749171,1780381843000,-500.0,0.00013699,2]
[423749170,1780381843000,-500.0,0.00013699,2]
[423749173,1780381843000,-500.0,0.00013699,2]
[423749176,1780381843000,-500.0,0.00013699,2]
[423749290,1780381844000,-385.0,0.00013902,2]
[423749284,1780381844000,-1449.36,0.00013889,2]
[423749297,1780381844000,-385.0,0.00013906,2]
[423749288,1780381844000,-255.0,0.00013896,2]
[423749295,1780381844000,-385.0,0.00013905,2]
[423749280,1780381844000,-185.869,0.00013887,2]
[423749282,1780381844000,-500.0,0.00013888,2]
[423749276,1780381844000,-385.0,0.00013873,2]
[423749268,1780381844000,-8290.40597079,0.00013855,2]
[423749271,1780381844000,-385.0,0.00013863,2]
[423749301,1780381844000,-151.0,0.00013922,2]
[423749299,1780381844000,-382.0,0.00013916,2]
[423749286,1780381844000,-385.0,0.00013889,2]
[423749311,1780381844000,-643.75,0.00013962,2]
[423749305,1780381844000,-385.0,0.00013923,2]
[423749309,1780381844000,-575.1,0.00013962,2]
[423749326,1780381844000,-572.84,0.00013968,2]
[423749307,1780381844000,-385.0,0.00013933,2]
[423749321,1780381844000,-11000.92248865,0.00013965,2]
[423749323,1780381844000,-481.99,0.00013966,2]
[423749319,1780381844000,-184.98,0.00013962,2]
[423749316,1780381844000,-395.95,0.00013962,2]
[423749313,1780381844000,-395.95,0.00013962,2]
[423749314,1780381844000,-395.95,0.00013962,2]
[423749325,1780381844000,-184.99,0.00013968,2]
[423749273,1780381844000,-385.0,0.00013868,2]
[423749303,1780381844000,-385.0,0.00013923,2]
[423749275,1780381844000,-385.0,0.00013871,2]
[423749224,1780381844000,-1226.0,0.00013733,2]
[423749277,1780381844000,-385.0,0.00013877,2]
[423749329,1780381844000,-664.0,0.00013969,5]
[423749212,1780381844000,-153.60264733,0.00013707,2]
[423749222,1780381844000,-1273.0,0.00013733,2]
[423749226,1780381844000,-385.0,0.00013751,2]
[423749220,1780381844000,-164.0,0.0001372,2]
[423749216,1780381844000,-385.0,0.00013708,2]
[423749214,1780381844000,-385.0,0.00013708,2]
[423749229,1780381844000,-385.0,0.00013751,2]
[423749218,1780381844000,-385.0,0.00013715,2]
[423749231,1780381844000,-385.0,0.00013777,2]
[423749233,1780381844000,-385.0,0.00013778,2]
[423749235,1780381844000,-385.0,0.00013787,2]
[423749278,1780381844000,-1927.657,0.00013887,2]
[423749237,1780381844000,-385.0,0.00013793,2]
[423749248,1780381844000,-11000.92248865,0.0001381,2]
[423749239,1780381844000,-2433.90364764,0.00013793,2]
[423749241,1780381844000,-385.0,0.00013795,2]
[423749244,1780381844000,-385.0,0.00013804,2]
[423749253,1780381844000,-385.0,0.00013835,2]
[423749255,1780381844000,-166.66,0.00013836,2]
[423749257,1780381844000,-385.0,0.00013841,2]
[423749250,1780381844000,-385.0,0.00013829,2]
[423749259,1780381844000,-385.0,0.00013846,2]
[423749262,1780381844000,-385.0,0.00013847,2]
[423749264,1780381844000,-161.1842386,0.00013854,2]
[423749266,1780381844000,-360.0,0.00013855,2]
[423749246,1780381844000,-385.0,0.00013807,2]
[423749330,1780381844000,-385.0,0.00013971,2]
[423749292,1780381844000,-250.0,0.00013902,2]
[423749343,1780381844000,-395.95,0.00013973,2]
[423749370,1780381844000,-500.0,0.00014037,2]
[423749371,1780381844000,-200.0,0.00014037,2]
[423749373,1780381844000,-1591.0,0.0001404,2]
[423749375,1780381844000,-1591.0,0.0001404,2]
[423749372,1780381844000,-1591.0,0.0001404,2]
[423749380,1780381844000,-921.55396956,0.00014078,2]
[423749392,1780381844000,-150.0,0.00014237,2]
[423749387,1780381844000,-167.22049526,0.00014179,2]
[423749384,1780381844000,-5000.0,0.0001415,2]
[423749388,1780381844000,-597.0,0.0001419,5]
[423749381,1780381844000,-166.66,0.0001411,2]
[423749385,1780381844000,-500.0,0.00014162,2]
[423749382,1780381844000,-11000.92248865,0.00014121,2]
[423749383,1780381844000,-629.0,0.00014144,5]
[423749389,1780381844000,-500.0,0.0001419,2]
[423749386,1780381844000,-2433.90364764,0.00014162,2]
[423749391,1780381844000,-823.0,0.0001421,2]
[423749390,1780381844000,-335.69,0.000142,2]
[423749394,1780381844000,-500.0,0.0001424,2]
[423749395,1780381844000,-166.66,0.00014247,2]
[423749400,1780381844000,-150.0,0.0001425,2]
[423749396,1780381844000,-500.0,0.00014249,2]
[423749399,1780381844000,-419.87501604,0.0001425,2]
[423749402,1780381844000,-193939.28368304,0.0001425,2]
[423749401,1780381844000,-707.48408479,0.0001425,2]
[423749398,1780381844000,-150.0,0.0001425,2]
[423749345,1780381844000,-395.95,0.00013973,2]
[423749377,1780381844000,-160.0,0.00014055,2]
[423749379,1780381844000,-8290.40597079,0.00014064,2]
[423749393,1780381844000,-150.0,0.00014237,2]
[423749378,1780381844000,-196.75034628,0.00014055,2]
[423749341,1780381844000,-481.99,0.00013973,2]
[423749337,1780381844000,-643.71,0.00013972,2]
[423749334,1780381844000,-643.75,0.00013972,2]
[423749332,1780381844000,-572.84,0.00013972,2]
[423749350,1780381844000,-2433.90364764,0.00013978,2]
[423749339,1780381844000,-166.66,0.00013973,2]
[423749353,1780381844000,-482.02,0.00013981,2]
[423749354,1780381844000,-575.1,0.00013981,2]
[423749348,1780381844000,-317.4,0.00013976,2]
[423749352,1780381844000,-572.84,0.0001398,2]
[423749355,1780381844000,-481.99,0.00013981,2]
[423749358,1780381844000,-250.0,0.00014,2]
[423749359,1780381844000,-887.0,0.00014,2]
[423749357,1780381844000,-575.1,0.00013983,2]
[423749361,1780381844000,-177.91829987,0.00014007,2]
[423749376,1780381844000,-215.67541492,0.00014055,2]
[423749368,1780381844000,-425.12591492,0.00014029,2]
[423749369,1780381844000,-500.0,0.00014036,2]
[423749356,1780381844000,-643.75,0.00013981,2]
[423749367,1780381844000,-2000.0,0.00014011,2]
[423749363,1780381844000,-500.0,0.00014009,2]
[423749365,1780381844000,-303.28,0.00014009,2]
[423749366,1780381844000,-573.16,0.00014009,2]
[423749360,1780381844000,-309.0,0.00014,2]
[423749397,1780381844000,-500.0,0.00014249,2]
[423749362,1780381844000,-182.93,0.00014009,2]
[423749364,1780381844000,-500.0,0.00014009,2]
[423749374,1780381844000,-1591.0,0.0001404,2]
[423749403,1780381846000,-152.0,0.0001194,7]
[423749404,1780381846000,-201.05001,0.00013433,2]
[423749480,1780382057000,-300.0,0.00010698,2]
[423749481,1780382074000,-150.0,0.00010698,2]
[423749482,1780382111000,-1200.0,0.00010698,2]
[423749496,1780382127000,-216.13842104,0.00010698,2]
[423749498,1780382127000,202.25412661,0.000169,30]
[423749495,1780382127000,-300.0,0.00010698,2]
[423749517,1780382166000,-983.86157896,0.00010698,2]
[423749518,1780382181000,-300.0,0.00010698,2]
[423749520,1780382181000,-66.13842104,0.00010699,2]
[423749519,1780382181000,-150.0,0.00010698,2]
[423749521,1780382219000,-500.0,0.00010698,2]
[423749522,1780382235000,-500.0,0.00010698,2]
[423749524,1780382271000,-500.0,0.00010697,2]
[423749525,1780382289000,-500.0,0.00010697,2]
[423749526,1780382291000,688.3667558,9.897e-05,2]
[423749527,1780382325000,-300.0,0.00010696,2]
[423749528,1780382378000,-1741.45500423,0.00010596,2]
[423749529,1780382396000,-1741.45500423,0.00010596,2]
[423749530,1780382411000,-2185.7866,0.00010596,2]
[423749531,1780382428000,-2185.7866,0.00010596,2]
[423749537,1780382734000,-295.8842679,0.00010545,2]
[423749538,1780382752000,-1129.641172,0.00010545,2]
[423749539,1780382768000,-326.0034247,0.00010545,2]
[423749540,1780382785000,-500.0,0.00010646,2]
[423749541,1780382821000,-166.12346902,0.00010646,2]
[423749542,1780382837000,-216.33230782,0.00010646,2]
[423749543,1780382838000,-33.66769218,0.00010646,2]
[423749544,1780382838000,-216.33230782,0.00010692,2]
[423749545,1780382874000,-83.66769218,0.00010692,2]
[423749546,1780382892000,-319.0,0.00010693,2]
[423749547,1780382928000,-500.0,0.00010693,2]
[423749548,1780382943000,-870.358828,0.00010693,2]
[423749549,1780382961000,-300.0,0.00010692,2]
[423749550,1780382961000,-329.641172,0.00010693,2]
[423749551,1780382961000,-196.75034628,0.00010693,2]
[423749553,1780382962000,-206.13801986,0.00010693,2]
[423749552,1780382962000,-190.48290326,0.00010693,2]
[423749554,1780383012000,-157.62,0.00010753,2]
[423749584,1780383031000,-9378.9,0.00011032,2]
[423749579,1780383031000,-163.58,0.00010753,2]
[423749580,1780383031000,-150.0,0.00010867,2]
[423749581,1780383031000,-215.67541492,0.00010913,2]
[423749583,1780383031000,-1200.0,0.00011031,2]
[423749582,1780383031000,-160.0,0.00010913,2]
[423749601,1780383032000,-813.69959927,0.00011828,2]
[423749599,1780383032000,-150.0,0.00011657,2]
[423749598,1780383032000,-157.62,0.00011601,2]
[423749594,1780383032000,-1000.0,0.00011242,2]
[423749606,1780383032000,-3053.24057871,0.00012526,2]
[423749596,1780383032000,-2305.0480576,0.0001137,2]
[423749605,1780383032000,-185.64,0.00012329,2]
[423749595,1780383032000,-157.62,0.00011318,2]
[423749589,1780383032000,-200.0,0.00011151,2]
[423749603,1780383032000,-289.06,0.00012166,2]
[423749586,1780383032000,-233.91,0.00011092,2]
[423749590,1780383032000,-1075.86458508,0.00011174,2]
[423749592,1780383032000,-224.6405796,0.00011174,2]
[423749593,1780383032000,-1002.07,0.00011231,2]
[423749588,1780383032000,-766.66,0.00011138,2]
[423749587,1780383032000,-3140.27,0.00011093,2]
[423749585,1780383032000,-157.62,0.00011035,2]
[423749591,1780383032000,-699.49483532,0.00011174,2]
[423749604,1780383032000,-185.70454703,0.00012315,7]
[423749597,1780383032000,-194.61,0.00011589,2]
[423749602,1780383032000,-157.62,0.00011884,2]
[423749629,1780383032000,-452.67670922,0.00013164,2]
[423749619,1780383032000,-225.87752347,0.00013164,2]
[423749622,1780383032000,-657.52566725,0.00013164,2]
[423749600,1780383032000,-1056.70188367,0.00011826,2]
[423749627,1780383032000,-639.02351864,0.00013164,2]
[423749624,1780383032000,-9.44971409,0.00013164,2]
[423749617,1780383032000,-236.31563645,0.00013164,2]
[423749623,1780383032000,-491.46185866,0.00013164,2]
[423749615,1780383032000,-1084.44037682,0.00013164,2]
[423749621,1780383032000,-831.18207248,0.00013164,2]
[423749613,1780383032000,-378.51182143,0.00012635,2]
[423749612,1780383032000,-623.55817857,0.00012635,2]
[423749610,1780383032000,-13726.08709136,0.00012626,2]
[423749611,1780383032000,-1132.8984,0.00012626,2]
[423749609,1780383032000,-3733.42788818,0.00012626,2]
[423749614,1780383032000,-1034.77971466,0.00012868,2]
[423749608,1780383032000,-24474.45732046,0.00012626,2]
[423749607,1780383032000,-3331.25232129,0.00012526,2]
[423749616,1780383032000,-809.42854104,0.00013164,2]
[423749673,1780383038000,-152.941275,0.00013538,2]
[423749671,1780383038000,-5477.03226559,0.00013538,2]
[423749672,1780383038000,-68915.53175441,0.00013538,2]
[423749674,1780383038000,-150.0,0.00013578,2]
[423749676,1780383038000,-2000.0,0.00013606,2]
[423749667,1780383038000,-329.93253961,0.00013513,2]
[423749669,1780383038000,-3746.34432645,0.00013513,2]
[423749670,1780383038000,-150.0,0.00013533,2]
[423749668,1780383038000,-1404.0,0.00013513,2]
[423749666,1780383038000,-184.98,0.00013147,2]
[423749677,1780383038000,-2000.0,0.00013606,2]
[423749675,1780383038000,-2512.45974365,0.000136,2]
[423749679,1780383038000,-2000.0,0.00013606,2]
[423749684,1780383038000,-2000.0,0.00013606,2]
[423749681,1780383038000,-2000.0,0.00013606,2]
[423749680,1780383038000,-2000.0,0.00013606,2]
[423749692,1780383038000,-611.30556634,0.00013606,2]
[423749690,1780383038000,-339.2865,0.00013606,2]
[423749691,1780383038000,-578.28490064,0.00013606,2]
[423749687,1780383038000,-1567.1858496,0.00013606,2]
[423749686,1780383038000,-2000.0,0.00013606,2]
[423749693,1780383038000,-237.04822919,0.00013606,2]
[423749689,1780383038000,-471.12303302,0.00013606,2]
[423749683,1780383038000,-2000.0,0.00013606,2]
[423749682,1780383038000,-2000.0,0.00013606,2]
[423749678,1780383038000,-2000.0,0.00013606,2]
[423749688,1780383038000,-432.8141504,0.00013606,2]
[423749685,1780383038000,-2000.0,0.00013606,2]
[423749716,1780383039000,-5986.23714462,0.00013647,2]
[423749718,1780383039000,-929.0,0.00013658,2]
[423749714,1780383039000,-151.0,0.00013613,2]
[423749711,1780383039000,-2000.0,0.00013613,2]
[423749717,1780383039000,-943.3400628,0.00013658,2]
[423749722,1780383039000,-1273.0,0.00013658,2]
[423749719,1780383039000,-1357.0,0.00013658,2]
[423749727,1780383039000,-1124.0,0.00013676,2]
[423749728,1780383039000,-289.06,0.00013686,2]
[423749729,1780383039000,-897.296918,0.00013696,2]
[423749712,1780383039000,-2000.0,0.00013613,2]
[423749724,1780383039000,-932.0,0.00013658,2]
[423749721,1780383039000,-525.0,0.00013658,2]
[423749715,1780383039000,-150.0,0.00013624,2]
[423749707,1780383039000,-2000.0,0.00013613,2]
[423749710,1780383039000,-2000.0,0.00013613,2]
[423749708,1780383039000,-2000.0,0.00013613,2]
[423749709,1780383039000,-2000.0,0.00013613,2]
[423749701,1780383039000,-2000.0,0.00013606,2]
[423749705,1780383039000,-1655.96,0.00013608,2]
[423749703,1780383039000,-412.22,0.00013606,2]
[423749698,1780383039000,-2000.0,0.00013606,2]
[423749704,1780383039000,-1319.50838057,0.00013608,2]
[423749702,1780383039000,-2000.0,0.00013606,2]
[423749699,1780383039000,-2000.0,0.00013606,2]
[423749706,1780383039000,-778.84,0.00013608,2]
[423749700,1780383039000,-2000.0,0.00013606,2]
[423749697,1780383039000,-1762.95177081,0.00013606,2]
[423749723,1780383039000,-487.587,0.00013658,2]
[423749713,1780383039000,-671.76,0.00013613,2]
[423749725,1780383039000,-6201.52135705,0.00013667,2]
[423749738,1780383039000,-513.4,0.00013698,2]
[423749720,1780383039000,-3551.0,0.00013658,2]
[423749726,1780383039000,-150.0,0.00013669,2]
[423749759,1780383039000,-644.70960066,0.00013725,2]
[423749758,1780383039000,-466.69824375,0.0001372,2]
[423749757,1780383039000,-870.358828,0.0001372,2]
[423749760,1780383039000,-227.62493189,0.00013732,2]
[423749756,1780383039000,-981.94292825,0.0001372,2]
[423749755,1780383039000,-2319.0,0.0001372,2]
[423749752,1780383039000,-3620.299839,0.00013701,2]
[423749751,1780383039000,-151.0,0.00013699,2]
[423749753,1780383039000,-150.0,0.00013702,2]
[423749747,1780383039000,-151.0,0.00013699,2]
[423749743,1780383039000,-500.0,0.00013698,2]
[423749748,1780383039000,-202.682856,0.00013699,2]
[423749749,1780383039000,-200.0,0.00013699,2]
[423749750,1780383039000,-151.0,0.00013699,2]
[423749746,1780383039000,-151.0,0.00013699,2]
[423749744,1780383039000,-166.66,0.00013699,2]
[423749745,1780383039000,-151.0,0.00013699,2]
[423749731,1780383039000,-500.0,0.00013698,2]
[423749741,1780383039000,-500.0,0.00013698,2]
[423749730,1780383039000,-500.0,0.00013698,2]
[423749732,1780383039000,-500.0,0.00013698,2]
[423749734,1780383039000,-500.0,0.00013698,2]
[423749737,1780383039000,-500.0,0.00013698,2]
[423749733,1780383039000,-500.0,0.00013698,2]
[423749735,1780383039000,-500.0,0.00013698,2]
[423749754,1780383039000,-150.0,0.00013715,2]
[423749736,1780383039000,-551.45,0.00013698,2]
[423749739,1780383039000,-500.0,0.00013698,2]
[423749742,1780383039000,-500.0,0.00013698,2]
[423749740,1780383039000,-500.0,0.00013698,2]
[423749777,1780383040000,-987.90616194,0.00013823,2]
[423749769,1780383040000,-513.4,0.00013732,2]
[423749771,1780383040000,-150.0,0.0001376,2]
[423749772,1780383040000,-2512.45974365,0.00013763,2]
[423749773,1780383040000,-155.133635,0.00013805,2]
[423749770,1780383040000,-150.0,0.00013737,2]
[423749768,1780383040000,-500.0,0.00013732,2]
[423749763,1780383040000,-256.73781653,0.00013732,2]